fUSD/lending_fUSD_20240630
["ID","MTS","AMOUNT","RATE_DAILY","PERIOD"]
[330731142,1719741054323,-1139.68,0.00013998,3]
[330731143,1719741054333,-591.55367972,0.00013998,3]
[330731144,1719741054344,-500.0,0.00013998,3]
[330731145,1719741054354,-500.0,0.00013998,3]
[330731146,1719741054365,-500.0,0.00013998,3]
[330731147,1719741054376,-500.0,0.00013998,3]
[330731148,1719741054388,-500.0,0.00013998,3]
[330731149,1719741054399,-500.0,0.00013998,3]
[330731150,1719741054409,-663.26,0.00013998,3]
[330731151,1719741054420,-500.0,0.00013998,3]
[330731152,1719741054430,-539.29,0.00013999,2]
[330731153,1719741054440,-539.29,0.00013999,2]
[330731154,1719741054450,-539.29,0.00013999,2]
[330731155,1719741054461,-505.42,0.00013999,2]
[330731156,1719741054471,-505.42,0.00013999,2]
[330731157,1719741054481,-505.42,0.00013999,2]
[330731158,1719741054492,-505.42,0.00013999,2]
[330731159,1719741054502,-505.42,0.00013999,2]
[330731160,1719741054513,-505.42,0.00013999,2]
[330731161,1719741054523,-505.42,0.00013999,2]
[330731162,1719741054534,-505.42,0.00013999,2]
[330731163,1719741054545,-11391.40916013,0.00014,2]
[330731164,1719741055408,-4714.6252097,0.00014,2]
[330731165,1719741055420,-5271.31605003,0.00014,2]
[330731166,1719741055458,-1279.26,0.00014,2]
[330731167,1719741055469,-19908.48171763,0.00014,2]
[330731168,1719741055482,-1175.55550787,0.00014,2]
[330731169,1719741055494,-2990.778085,0.00014,2]
[330731170,1719741055525,-322.9200001,0.00014,2]
[330731171,1719741055537,-1854.92004689,0.00014,2]
[330731172,1719741055548,-51216.5438173,0.00014,2]
[330731173,1719741055561,-619.76020313,0.00014,2]
[330731174,1719741055572,-76913.54495215,0.00014,2]
[330731175,1719741055584,-1412.93673964,0.00014,2]
[330731176,1719741055595,-4794.43205426,0.00014,2]
[330731181,1719741243406,2829.21023985,0.00011098,2]
[330731182,1719741266536,2795.22,0.00011098,2]
[330731183,1719741303928,552.6847755,0.00011098,2]
[330731184,1719741313639,20312.51943268,0.00011098,2]
[330731185,1719741315490,181.08184228,0.00011098,2]
[330731186,1719741316251,155.77707395,0.00011098,2]
[330731187,1719741328318,204.75806513,0.00011098,2]
[330731188,1719741330323,411.47785028,0.00011098,2]
[330731189,1719741377556,1794.54613393,0.00011098,2]
[330731190,1719741402720,155.0,0.00011098,2]
[330731191,1719741436879,163.18626178,0.00011098,2]
[330731192,1719741455577,205.32220319,0.00011098,2]
[330731194,1719741642418,489.76,0.00010744,2]
[330731196,1719741803053,159.68599667,0.00011099,2]
[330731199,1719741830732,155.0,0.00011098,2]
[330731201,1719741948561,205.32220319,0.00011098,2]
[330731203,1719742087398,150.0,0.00011098,2]
[330731204,1719742087422,77.04865744,0.00011098,2]
[330731205,1719742167125,-300.0,0.00011198,2]
[330731206,1719742167147,-2537.31978779,0.00011199,2]
[330731214,1719742231990,-300.0,0.00011198,2]
[330731216,1719742232000,-5904.643034,0.00011199,2]
[330731218,1719742232011,-598.795,0.00011199,2]
[330731219,1719742232022,-15667.07226814,0.00011199,2]
[330731221,1719742232031,-44580.95219029,0.00011199,2]
[330731224,1719742232144,-508.47198714,0.00011199,2]
[330731225,1719742232156,-471.75317277,0.00011199,2]
[330731226,1719742232168,-18508.7726498,0.00011199,2]
[330731227,1719742232177,-10541.24799187,0.00011199,2]
[330731228,1719742232186,-10324.65746517,0.00011199,2]
[330731229,1719742232199,-521.69920821,0.00011199,2]
[330731230,1719742232208,-205.32220319,0.00012273,2]
[330731231,1719742232219,-205.32220319,0.00012273,2]
[330731232,1719742232229,-155.0,0.00012302,2]
[330731233,1719742232238,-420.0,0.00012303,2]
[330731234,1719742232248,-193.85,0.00012345,2]
[330731235,1719742232259,-4360.21316262,0.00012365,2]
[330731236,1719742232273,-5150.10159546,0.00012365,2]
[330731237,1719742232288,-673.43302,0.00012365,2]
[330731240,1719742232317,-7599.9824991,0.00012365,2]
[330731242,1719742232328,-6116.26972282,0.00012365,2]
[330731244,1719742232337,-200.0,0.00012372,2]
[330731245,1719742232346,-150.0,0.00012389,2]
[330731246,1719742232358,-250.0,0.00012408,2]
[330731247,1719742232368,-224.99,0.00012408,2]
[330731248,1719742232377,-250.0,0.00012445,2]
[330731249,1719742232387,-1227.8878258,0.00012531,2]
[330731250,1719742232400,-8.2321742,0.00012531,2]
[330731251,1719742232409,-150.0,0.000126,2]
[330731252,1719742232421,-150.99,0.000126,2]
[330731253,1719742232431,-358.14020106,0.0001265,2]
[330731261,1719742238108,-167.43,0.00012393,2]
[330731262,1719742238119,-141.85979894,0.0001265,2]
[330731263,1719742238129,-3916.08,0.0001265,2]
[330731264,1719742238139,-499.99,0.0001265,2]
[330731265,1719742238149,-1068.44,0.0001265,2]
[330731266,1719742238159,-443.59,0.00012658,2]
[330731267,1719742238168,-168.64,0.00012676,2]
[330731268,1719742238178,-797.04,0.00012688,2]
[330731269,1719742238187,-2367.08020106,0.00012688,2]
[330731270,1719742238200,-414.18979894,0.00012688,2]
[330731271,1719742238209,-588.83676065,0.00012688,2]
[330731272,1719742238258,-577.80323935,0.00012688,2]
[330731273,1719742238268,-190.81,0.00012709,2]
[330731274,1719742238283,-1000.0,0.00012729,2]
[330731275,1719742238293,-495.98,0.00012783,2]
[330731276,1719742238303,-495.98,0.00012818,2]
[330731277,1719742238312,-495.98,0.00012853,2]
[330731278,1719742238323,-495.98,0.00012888,2]
[330731279,1719742238332,-495.98,0.00012923,2]
[330731280,1719742238342,-495.98,0.00012958,2]
[330731281,1719742238351,-495.98,0.00012993,2]
[330731282,1719742238363,-159.68599667,0.00012999,2]
[330731283,1719742238374,-2545.1,0.00013008,2]
[330731284,1719742238383,-495.98,0.00013028,2]
[330731285,1719742238393,-495.98,0.00013063,2]
[330731286,1719742238402,-495.98,0.00013099,2]
[330731287,1719742238412,-227.04865744,0.00013128,2]
[330731289,1719742238422,-227.04865744,0.00013128,2]
[330731290,1719742238431,-495.98,0.00013134,2]
[330731291,1719742238440,-495.98,0.00013169,2]
[330731292,1719742238450,-495.98,0.00013204,2]
[330731293,1719742238459,-495.98,0.00013239,2]
[330731294,1719742238469,-495.98,0.00013274,2]
[330731295,1719742238478,-150.0,0.000133,2]
[330731296,1719742238487,-495.98,0.00013309,2]
[330731297,1719742238497,-495.98,0.00013344,2]
[330731298,1719742238506,-495.98,0.00013379,2]
[330731299,1719742238515,-495.98,0.00013414,2]
[330731300,1719742238525,-495.98,0.00013449,2]
[330731301,1719742238534,-300.0,0.000135,4]
[330731302,1719742238543,-587.0,0.00013517,2]
[330731303,1719742238552,-700.0,0.000136,4]
[330731304,1719742238562,-366.49,0.00013699,2]
[330731305,1719742238571,-880.73,0.00013699,2]
[330731306,1719742238580,-200.0,0.00013699,2]
[330731309,1719742238589,-1100.0,0.000137,5]
[330731311,1719742238599,-173.22,0.00013705,2]
[330731313,1719742238609,-4981.45812281,0.0001379,2]
[330731315,1719742238619,-4840.08859233,0.00013799,2]
[330731317,1719742238629,-1500.0,0.000138,5]
[330731319,1719742238639,-1068.05941,0.0001386,2]
[330731321,1719742238649,-1068.05941,0.0001386,2]
[330731323,1719742238659,-1068.05941,0.0001386,2]
[330731325,1719742238669,-1396.1762,0.0001389,2]
[330731327,1719742238679,-219.62,0.0001389,2]
[330731329,1719742238689,-174.028,0.00013894,2]
[330731331,1719742238699,-1389.9544,0.00013894,2]
[330731333,1719742238709,-500.0,0.00013895,2]
[330731335,1719742238718,-1000.0,0.00013895,2]
[330731337,1719742238727,-623.0705,0.00013895,2]
[330731339,1719742238736,-5495.29079535,0.00013895,2]
[330731345,1719742238783,-19504.70920465,0.00013895,2]
[330731347,1719742238793,-2294.252,0.00013895,2]
[330731349,1719742238803,-3225.3218,0.00013896,2]
[330731351,1719742238812,-165.2105,0.00013896,2]
[330731353,1719742238822,-287.9612,0.00013896,2]
[330731355,1719742238831,-2087.5524,0.00013896,2]
[330731357,1719742238840,-425.5106,0.000139,2]
[330731359,1719742238850,-164.37168205,0.000139,2]
[330731361,1719742238859,-168.71598976,0.000139,2]
[330731363,1719742238868,-174.0861955,0.000139,2]
[330731365,1719742238878,-3022.79681731,0.000139,2]
[330731367,1719742238887,-1068.05942,0.000139,2]
[330731369,1719742238896,-1900.0,0.000139,5]
[330731371,1719742238905,-166.6470464,0.000139,2]
[330731373,1719742238915,-410.78672007,0.00013904,2]
[330731375,1719742238924,-1068.05941,0.0001394,2]
[330731377,1719742238933,-150.0,0.00013951,2]
[330731379,1719742238942,-1161.11,0.00013983,2]
[330731381,1719742238951,-1161.11,0.00013984,2]
[330731383,1719742238960,-1161.11,0.00013984,2]
[330731385,1719742238970,-1161.11,0.00013984,2]
[330731387,1719742238980,-1161.11,0.00013984,2]
[330731389,1719742238989,-202.60743372,0.00013989,2]
[330731391,1719742238999,-263.41362794,0.00013989,2]
[330731392,1719742239009,-2245.0,0.0001399,2]
[330731394,1719742239019,-500.0,0.00013992,3]
[330731396,1719742239028,-1040.67,0.00013992,3]
[330731398,1719742239038,-500.0,0.00013992,3]
[330731400,1719742239048,-722.49,0.00013992,3]
[330731402,1719742239058,-1068.99,0.00013992,3]
[330731404,1719742239068,-500.0,0.00013992,3]
[330731406,1719742239078,-1335.68,0.00013992,3]
[330731408,1719742239088,-531.82849564,0.00013992,2]
[330731410,1719742239098,-1107.07,0.00013992,3]
[330731412,1719742239108,-797.7,0.00013992,3]
[330731414,1719742239118,-1039.38,0.00013992,3]
[330731416,1719742239128,-500.0,0.00013993,3]
[330731418,1719742239138,-1437.21,0.00013993,3]
[330731420,1719742239148,-1666.93,0.00013993,3]
[330731422,1719742239158,-931.62,0.00013993,3]
[330731424,1719742239167,-1064.18,0.00013993,3]
[330731426,1719742239177,-579.52,0.00013993,3]
[330731428,1719742239188,-1033.58,0.00013993,3]
[330731430,1719742239201,-1322.5,0.00013993,3]
[330731432,1719742239210,-1345.27,0.00013993,3]
[330731434,1719742239220,-623.07,0.00013993,3]
[330731436,1719742239231,-1094.24,0.00013993,3]
[330731438,1719742239241,-2395.42,0.00013993,3]
[330731440,1719742239251,-1440.79,0.00013993,3]
[330731442,1719742239260,-981.06,0.00013993,3]
[330731445,1719742239271,-5680.26,0.00013993,3]
[330731446,1719742239285,-500.0,0.00013993,3]
[330731448,1719742239296,-500.0,0.00013993,3]
[330731451,1719742239306,-500.0,0.00013993,3]
[330731452,1719742239317,-3523.23,0.00013993,3]
[330731455,1719742239327,-549.6112213,0.00013994,3]
[330731457,1719742239337,-500.0,0.00013994,3]
[330731458,1719742239347,-500.0,0.00013994,3]
[330731460,1719742239361,-500.0,0.00013994,3]
[330731462,1719742239371,-500.0,0.00013994,3]
[330731465,1719742239381,-500.0,0.00013994,3]
[330731466,1719742239391,-787.13,0.00013994,3]
[330731469,1719742239402,-853.51,0.00013994,3]
[330731471,1719742239411,-781.87,0.00013994,3]
[330731473,1719742239421,-500.0,0.00013994,3]
[330731475,1719742239431,-500.0,0.00013994,3]
[330731477,1719742239442,-517.07,0.00013994,3]
[330731479,1719742239452,-1079.8,0.00013994,3]
[330731481,1719742239461,-500.0,0.00013994,3]
[330731483,1719742239472,-500.0,0.00013994,3]
[330731485,1719742239483,-500.0,0.00013994,3]
[330731487,1719742239493,-500.0,0.00013994,3]
[330731489,1719742239503,-615.41,0.00013994,3]
[330731491,1719742239512,-500.0,0.00013994,3]
[330731493,1719742239522,-500.0,0.00013994,3]
[330731495,1719742239531,-500.0,0.00013994,3]
[330731497,1719742239543,-500.0,0.00013994,3]
[330731498,1719742239552,-500.0,0.00013994,3]
[330731500,1719742239562,-353.52,0.00013994,3]
[330731502,1719742239571,-538.82,0.00013994,3]
[330731505,1719742239583,-500.0,0.00013994,3]
[330731507,1719742239593,-500.0,0.00013994,3]
[330731508,1719742239603,-500.0,0.00013994,3]
[330731510,1719742239613,-1219.34,0.00013994,3]
[330731513,1719742239628,-500.0,0.00013994,3]
[330731515,1719742239638,-500.0,0.00013994,3]
[330731517,1719742239648,-870.22,0.00013994,3]
[330731519,1719742239659,-500.0,0.00013994,3]
[330731521,1719742239669,-500.0,0.00013994,3]
[330731523,1719742239678,-500.0,0.00013994,3]
[330731526,1719742239698,-500.0,0.00013994,3]
[330731529,1719742239715,-500.0,0.00013994,3]
[330731532,1719742239733,-500.0,0.00013994,3]
[330731534,1719742239745,-500.0,0.00013994,3]
[330731537,1719742239765,-500.0,0.00013994,3]
[330731539,1719742239780,-513.53,0.00013994,3]
[330731540,1719742239795,-500.0,0.00013994,3]
[330731541,1719742239809,-500.0,0.00013994,3]
[330731542,1719742239826,-500.0,0.00013994,3]
[330731543,1719742239841,-843.54,0.00013994,3]
[330731544,1719742239857,-638.95,0.00013994,3]
[330731545,1719742239874,-500.0,0.00013994,3]
[330731547,1719742239890,-948.98,0.00013994,3]
[330731549,1719742239905,-500.0,0.00013994,3]
[330731552,1719742239920,-514.36837071,0.00013994,3]
[330731554,1719742239933,-500.0,0.00013994,3]
[330731557,1719742239945,-500.0,0.00013994,3]
[330731559,1719742239958,-554.1,0.00013994,3]
[330731562,1719742239973,-961.21,0.00013994,3]
[330731564,1719742239989,-500.0,0.00013994,3]
[330731567,1719742240005,-972.43,0.00013994,3]
[330731569,1719742240022,-500.0,0.00013994,3]
[330731572,1719742240038,-500.0,0.00013994,3]
[330731574,1719742240050,-500.0,0.00013994,3]
[330731576,1719742240061,-904.03,0.00013994,3]
[330731579,1719742240074,-500.0,0.00013994,3]
[330731581,1719742240089,-500.0,0.00013994,3]
[330731584,1719742240107,-500.0,0.00013994,3]
[330731587,1719742240119,-500.0,0.00013994,3]
[330731589,1719742240132,-1000.98,0.00013994,3]
[330731592,1719742240150,-500.0,0.00013994,3]
[330731594,1719742240163,-500.0,0.00013994,3]
[330731597,1719742240175,-1107.47,0.00013994,3]
[330731599,1719742240187,-500.0,0.00013994,3]
[330731601,1719742240201,-500.0,0.00013994,3]
[330731604,1719742240216,-771.28,0.00013994,3]
[330731609,1719742240250,-1210.55,0.00013994,3]
[330731611,1719742240265,-500.0,0.00013994,3]
[330731614,1719742240284,-500.0,0.00013994,2]
[330731617,1719742240299,-500.0,0.00013994,3]
[330731619,1719742240313,-500.0,0.00013994,3]
[330731622,1719742240327,-500.0,0.00013994,3]
[330731624,1719742240340,-500.0,0.00013994,3]
[330731627,1719742240354,-500.0,0.00013994,3]
[330731629,1719742240370,-500.0,0.00013994,3]
[330731631,1719742240384,-886.3,0.00013994,3]
[330731634,1719742240397,-500.0,0.00013994,3]
[330731636,1719742240411,-500.0,0.00013994,3]
[330731639,1719742240427,-500.0,0.00013994,3]
[330731642,1719742240440,-500.0,0.00013994,3]
[330731644,1719742240453,-695.93,0.00013994,3]
[330731646,1719742240466,-500.0,0.00013994,3]
[330731649,1719742240480,-500.0,0.00013994,3]
[330731651,1719742240492,-500.0,0.00013994,3]
[330731653,1719742240505,-919.6,0.00013994,3]
[330731656,1719742240518,-500.0,0.00013994,2]
[330731658,1719742240531,-500.0,0.00013994,3]
[330731661,1719742240544,-500.0,0.00013994,3]
[330731663,1719742240557,-751.63,0.00013994,3]
[330731666,1719742240571,-500.0,0.00013994,3]
[330731668,1719742240583,-500.0,0.00013994,3]
[330731671,1719742240596,-546.59480651,0.00013994,3]
[330731673,1719742240609,-500.0,0.00013994,3]
[330731675,1719742240622,-509.1,0.00013994,3]
[330731678,1719742240636,-500.0,0.00013994,3]
[330731680,1719742240648,-500.0,0.00013994,3]
[330731683,1719742240661,-500.0,0.00013994,3]
[330731685,1719742240674,-500.0,0.00013994,3]
[330731687,1719742240687,-500.0,0.00013994,3]
[330731690,1719742240700,-500.0,0.00013994,3]
[330731692,1719742240713,-500.0,0.00013994,3]
[330731695,1719742240726,-500.0,0.00013994,3]
[330731697,1719742240738,-500.0,0.00013994,3]
[330731699,1719742240751,-1029.13,0.00013994,3]
[330731702,1719742240764,-527.01,0.00013994,3]
[330731704,1719742240776,-500.0,0.00013994,3]
[330731707,1719742240788,-500.0,0.00013994,3]
[330731709,1719742240800,-717.85,0.00013994,3]
[330731711,1719742240813,-500.0,0.00013994,3]
[330731714,1719742240825,-533.55,0.00013994,3]
[330731716,1719742240837,-969.84,0.00013994,3]
[330731718,1719742240849,-500.0,0.00013994,3]
[330731721,1719742240861,-273.71,0.00013994,3]
[330731723,1719742240874,-500.0,0.00013994,3]
[330731725,1719742240885,-824.11,0.00013994,3]
[330731728,1719742240898,-500.0,0.00013994,3]
[330731730,1719742240910,-500.0,0.00013994,3]
[330731732,1719742240922,-1163.45,0.00013994,3]
[330731735,1719742240934,-1095.99,0.00013994,3]
[330731737,1719742240946,-500.0,0.00013994,3]
[330731739,1719742240958,-174.94,0.00013994,3]
[330731742,1719742240971,-500.0,0.00013994,3]
[330731744,1719742240983,-872.23,0.00013994,3]
[330731746,1719742240995,-500.0,0.00013994,3]
[330731749,1719742241008,-500.0,0.00013994,3]
[330731751,1719742241019,-500.0,0.00013994,3]
[330731753,1719742241033,-500.0,0.00013994,3]
[330731756,1719742241045,-500.0,0.00013994,3]
[330731759,1719742241068,-636.08,0.00013994,3]
[330731762,1719742241085,-500.0,0.00013994,3]
[330731765,1719742241100,-692.9,0.00013994,3]
[330731768,1719742241116,-500.0,0.00013994,3]
[330731770,1719742241132,-2633.65,0.00013994,3]
[330731773,1719742241148,-500.0,0.00013994,3]
[330731776,1719742241162,-701.71,0.00013994,3]
[330731778,1719742241177,-733.16,0.00013994,3]
[330731781,1719742241191,-501.59,0.00013994,3]
[330731783,1719742241206,-574.7,0.00013994,3]
[330731786,1719742241220,-500.0,0.00013994,3]
[330731788,1719742241235,-500.0,0.00013994,3]
[330731791,1719742241248,-500.0,0.00013994,3]
[330731794,1719742241262,-500.0,0.00013994,3]
[330731796,1719742241277,-500.0,0.00013994,3]
[330731798,1719742241291,-1707.17,0.00013994,3]
[330731801,1719742241305,-500.0,0.00013994,3]
[330731803,1719742241319,-937.62,0.00013994,3]
[330731806,1719742241332,-814.9,0.00013994,3]
[330731808,1719742241345,-500.0,0.00013994,3]
[330731810,1719742241360,-573.28,0.00013994,3]
[330731813,1719742241373,-760.79,0.00013994,3]
[330731815,1719742241386,-644.22,0.00013994,3]
[330731818,1719742241399,-787.41,0.00013994,3]
[330731820,1719742241411,-714.96,0.00013994,3]
[330731822,1719742241424,-903.62,0.00013994,3]
[330731825,1719742241436,-500.0,0.00013994,3]
[330731827,1719742241449,-500.0,0.00013994,3]
[330731829,1719742241461,-30873.0,0.00013994,2]
[330731830,1719742241473,-500.0,0.00013994,3]
[330731831,1719742241486,-593.72,0.00013994,3]
[330731832,1719742241498,-500.0,0.00013994,3]
[330731833,1719742241510,-500.0,0.00013994,3]
[330731834,1719742241523,-548.67,0.00013994,3]
[330731835,1719742241535,-500.0,0.00013994,3]
[330731836,1719742241547,-500.0,0.00013994,3]
[330731839,1719742241560,-500.0,0.00013994,3]
[330731841,1719742241572,-500.0,0.00013994,3]
[330731844,1719742241584,-724.29,0.00013994,3]
[330731846,1719742241596,-694.79,0.00013994,3]
[330731848,1719742241609,-500.0,0.00013994,3]
[330731850,1719742241620,-500.0,0.00013994,3]
[330731853,1719742241633,-927.13,0.00013994,3]
[330731854,1719742241644,-500.0,0.00013994,3]
[330731855,1719742241657,-500.0,0.00013994,3]
[330731856,1719742241669,-500.0,0.00013994,3]
[330731857,1719742241683,-500.0,0.00013994,3]
[330731858,1719742241696,-500.0,0.00013994,3]
[330731859,1719742241708,-1199.06,0.00013994,3]
[330731860,1719742241720,-500.0,0.00013994,3]
[330731861,1719742241732,-845.26,0.00013994,3]
[330731862,1719742241745,-500.0,0.00013994,3]
[330731863,1719742241756,-500.0,0.00013994,3]
[330731864,1719742241769,-500.0,0.00013994,3]
[330731865,1719742241780,-500.0,0.00013994,3]
[330731866,1719742241794,-500.0,0.00013994,3]
[330731867,1719742241806,-500.0,0.00013994,3]
[330731868,1719742241818,-500.0,0.00013994,3]
[330731869,1719742241831,-1829.84,0.00013994,3]
[330731870,1719742241843,-500.0,0.00013994,3]
[330731871,1719742241862,-500.0,0.00013994,3]
[330731872,1719742241877,-500.0,0.00013994,3]
[330731873,1719742241893,-500.0,0.00013994,3]
[330731874,1719742241910,-1052.78,0.00013994,3]
[330731875,1719742241926,-503.31113124,0.00013994,3]
[330731876,1719742241941,-705.85,0.00013994,3]
[330731877,1719742241955,-500.0,0.00013994,3]
[330731878,1719742241969,-500.0,0.00013994,3]
[330731879,1719742241984,-542.25,0.00013994,3]
[330731880,1719742241998,-500.0,0.00013994,3]
[330731881,1719742242013,-500.0,0.00013994,3]
[330731882,1719742242026,-500.0,0.00013994,3]
[330731883,1719742242041,-1319.09,0.00013994,3]
[330731884,1719742242056,-500.0,0.00013994,3]
[330731885,1719742242070,-500.0,0.00013994,3]
[330731886,1719742242083,-500.0,0.00013994,3]
[330731887,1719742242096,-500.0,0.00013994,3]
[330731888,1719742242109,-500.0,0.00013994,3]
[330731889,1719742242122,-500.0,0.00013994,3]
[330731890,1719742242135,-1803.2,0.00013994,3]
[330731891,1719742242148,-500.0,0.00013994,3]
[330731892,1719742242161,-500.0,0.00013994,3]
[330731893,1719742242175,-1059.04,0.00013994,3]
[330731894,1719742242188,-500.0,0.00013994,3]
[330731895,1719742242200,-776.55,0.00013994,3]
[330731896,1719742242213,-500.0,0.00013994,3]
[330731897,1719742242225,-500.0,0.00013994,3]
[330731898,1719742242238,-500.0,0.00013994,3]
[330731899,1719742242250,-646.94,0.00013994,3]
[330731900,1719742242262,-1318.01,0.00013994,3]
[330731901,1719742242278,-1024.28,0.00013994,3]
[330731902,1719742242289,-500.0,0.00013994,3]
[330731903,1719742242301,-500.0,0.00013994,3]
[330731904,1719742242314,-500.0,0.00013994,3]
[330731905,1719742242326,-500.0,0.00013994,3]
[330731906,1719742242338,-500.0,0.00013994,3]
[330731907,1719742242352,-500.0,0.00013994,3]
[330731908,1719742242364,-2256.70392722,0.00013994,3]
[330731910,1719742243263,-566.18888113,0.00013994,3]
[330731911,1719742243280,-360.56372545,0.00013994,3]
[330731912,1719742243291,-4374.7434662,0.00013994,3]
[330731913,1719742243300,-805.37,0.00013994,3]
[330731914,1719742243309,-193.78526111,0.00013994,3]
[330731915,1719742243322,-306.21473889,0.00013994,3]
[330731916,1719742243331,-81.83926517,0.00013994,3]
[330731917,1719742243343,-418.16073483,0.00013994,3]
[330731918,1719742243352,-500.0,0.00013994,3]
[330731919,1719742243365,-500.0,0.00013994,3]
[330731920,1719742243375,-793.37,0.00013994,3]
[330731921,1719742243384,-693.52,0.00013994,3]
[330731922,1719742243393,-207.49926517,0.00013994,3]
[330731923,1719742243404,-292.50073483,0.00013994,3]
[330731924,1719742243413,-500.0,0.00013994,3]
[330731925,1719742243423,-500.0,0.00013994,3]
[330731926,1719742243433,-500.0,0.00013994,3]
[330731927,1719742243443,-964.69,0.00013994,3]
[330731928,1719742243453,-500.0,0.00013994,3]
[330731929,1719742243463,-1067.71,0.00013994,3]
[330731930,1719742243472,-765.21,0.00013994,3]
[330731931,1719742243483,-500.0,0.00013994,3]
[330731932,1719742243492,-613.72,0.00013994,3]
[330731933,1719742243502,-480.65130426,0.00013994,3]
[330731934,1719742243515,-19.34869574,0.00013994,3]
[330731935,1719742243526,-500.0,0.00013994,3]
[330731936,1719742243535,-500.0,0.00013994,3]
[330731937,1719742243545,-500.0,0.00013994,3]
[330731938,1719742243555,-500.0,0.00013994,3]
[330731939,1719742243565,-500.0,0.00013994,3]
[330731940,1719742243574,-864.43,0.00013994,3]
[330731941,1719742243583,-500.0,0.00013994,3]
[330731942,1719742243592,-500.0,0.00013994,3]
[330731943,1719742243602,-989.75,0.00013994,3]
[330731944,1719742243611,-666.42,0.00013994,3]
[330731945,1719742243622,-757.43,0.00013994,3]
[330731946,1719742243631,-500.0,0.00013994,3]
[330731947,1719742243641,-500.0,0.00013994,3]
[330731948,1719742243650,-500.0,0.00013994,3]
[330731949,1719742243659,-861.26,0.00013994,3]
[330731950,1719742243668,-500.0,0.00013994,3]
[330731951,1719742243678,-460.63818938,0.00013994,3]
[330731952,1719742243690,-41.50651875,0.00013994,3]
[330731953,1719742243699,-500.0,0.00013994,3]
[330731954,1719742243708,-555.25,0.00013994,3]
[330731955,1719742243717,-299.77933602,0.00013994,3]
[330731956,1719742243728,-471.90914521,0.00013994,3]
[330731957,1719742243740,-119.92085479,0.00013994,3]
[330731958,1719742243749,-740.73914545,0.00013994,3]
[330731959,1719742243760,-84.93085455,0.00013994,3]
[330731960,1719742243769,-500.0,0.00013994,3]
[330731961,1719742243779,-234.52643651,0.00013994,3]
[330731962,1719742243791,-265.47356349,0.00013994,3]
[330731963,1719742243801,-500.0,0.00013994,3]
[330731964,1719742243811,-500.0,0.00013994,3]
[330731965,1719742243821,-500.0,0.00013994,3]
[330731966,1719742243832,-861.78,0.00013994,3]
[330731967,1719742243841,-587.34,0.00013994,3]
[330731968,1719742243851,-500.0,0.00013994,3]
[330731969,1719742243860,-564.66,0.00013994,2]
[330731970,1719742243869,-500.0,0.00013994,3]
[330731971,1719742243878,-2408.01,0.00013994,3]
[330731972,1719742243888,-500.0,0.00013994,3]
[330731973,1719742243898,-500.0,0.00013994,3]
[330731974,1719742243907,-1175.61,0.00013994,3]
[330731975,1719742243918,-500.0,0.00013994,3]
[330731976,1719742243928,-376.87549058,0.00013994,3]